[Event "Titled Tuesday Blitz May 30 Early 2023"]
[White "Gatterer, Florian"]
[Black "ArrestingPieces"]
[WhiteFideId "811688"]
[WhiteElo "2221"]
[BlackElo "2521"]
[Result "1/2-1/2"]
[Round "07"]
[TimeControl "180+2"]
[Date "2023.05.30"]
[WhiteClock "0:00:22"]
[BlackClock "0:00:21"]

1. b3 {[%clk 0:03:00]}  e5 {[%clk 0:02:59]} 2. Bb2 {[%clk 0:02:54]}  Nc6 {[%clk 0:03:00]} 3. c4 {[%clk 0:02:54]}  Nf6 {[%clk 0:02:59]} 4. Nf3 {[%clk 0:02:54]}  e4 {[%clk 0:02:57]} 5. Nd4 {[%clk 0:02:55]}  d5 {[%clk 0:02:57]} 6. e3 {[%clk 0:02:52]}  Nxd4 {[%clk 0:02:57]} 7. Bxd4 {[%clk 0:02:51]}  c5 {[%clk 0:02:56]} 8. Bxf6 {[%clk 0:02:50]}  Qxf6 {[%clk 0:02:55]} 9. Nc3 {[%clk 0:02:50]}  d4 {[%clk 0:02:26]} 10. Nxe4 {[%clk 0:02:45]}  Qg6 {[%clk 0:02:27]} 11. Ng3 {[%clk 0:02:40]}  Bd6 {[%clk 0:02:25]} 12. Be2 {[%clk 0:02:32]}  O-O {[%clk 0:02:21]} 13. O-O {[%clk 0:02:29]}  f5 {[%clk 0:02:12]} 14. Bh5 {[%clk 0:02:24]}  Qf6 {[%clk 0:02:11]} 15. Bf3 {[%clk 0:02:23]}  g6 {[%clk 0:02:09]} 16. Bd5+ {[%clk 0:02:15]}  Kg7 {[%clk 0:02:09]} 17. f4 {[%clk 0:02:15]}  dxe3 {[%clk 0:02:07]} 18. dxe3 {[%clk 0:02:14]}  Re8 {[%clk 0:02:06]} 19. Qf3 {[%clk 0:02:13]}  Rb8 {[%clk 0:02:06]} 20. Rad1 {[%clk 0:02:04]}  Re7 {[%clk 0:01:53]} 21. e4 {[%clk 0:01:59]}  Bc7 {[%clk 0:01:23]} 22. e5 {[%clk 0:01:52]}  Qa6 {[%clk 0:01:23]} 23. h4 {[%clk 0:01:49]}  Be6 {[%clk 0:01:22]} 24. Bxe6 {[%clk 0:01:45]}  Qxe6 {[%clk 0:01:12]} 25. Rd5 {[%clk 0:01:40]}  b5 {[%clk 0:01:03]} 26. cxb5 {[%clk 0:01:29]}  Rxb5 {[%clk 0:01:03]} 27. Rfd1 {[%clk 0:01:27]}  Rb8 {[%clk 0:00:58]} 28. Qd3 {[%clk 0:01:25]}  Qb6 {[%clk 0:00:56]} 29. Qc4 {[%clk 0:01:22]}  Qb4 {[%clk 0:00:52]} 30. Rd7 {[%clk 0:01:19]}  Re8 {[%clk 0:00:48]} 31. h5 {[%clk 0:01:02]}  Qxc4 {[%clk 0:00:40]} 32. bxc4 {[%clk 0:01:01]}  Ba5 {[%clk 0:00:41]} 33. R1d3 {[%clk 0:00:54]}  Kf7 {[%clk 0:00:40]} 34. R3d6 {[%clk 0:00:41]}  Rxd7 {[%clk 0:00:37]} 35. Rxd7+ {[%clk 0:00:41]}  Re7 {[%clk 0:00:38]} 36. Rxe7+ {[%clk 0:00:40]}  Kxe7 {[%clk 0:00:39]} 37. hxg6 {[%clk 0:00:40]}  hxg6 {[%clk 0:00:39]} 38. Ne2 {[%clk 0:00:40]}  Bd2 {[%clk 0:00:36]} 39. Kf2 {[%clk 0:00:38]}  Kd7 {[%clk 0:00:36]} 40. Kf3 {[%clk 0:00:36]}  Ke6 {[%clk 0:00:34]} 41. g3 {[%clk 0:00:35]}  g5 {[%clk 0:00:35]} 42. Ng1 {[%clk 0:00:30]}  g4+ {[%clk 0:00:28]} 43. Ke2 {[%clk 0:00:29]}  Bc3 {[%clk 0:00:27]} 44. Kd1 {[%clk 0:00:26]}  Bd4 {[%clk 0:00:26]} 45. Ne2 {[%clk 0:00:26]}  Bf2 {[%clk 0:00:27]} 46. Kc2 {[%clk 0:00:26]}  Kd7 {[%clk 0:00:27]} 47. Kb3 {[%clk 0:00:26]}  Kc6 {[%clk 0:00:27]} 48. Ka4 {[%clk 0:00:26]}  Be1 {[%clk 0:00:27]} 49. Kb3 {[%clk 0:00:25]}  a6 {[%clk 0:00:28]} 50. Ka4 {[%clk 0:00:25]}  Kd7 {[%clk 0:00:27]} 51. Kb3 {[%clk 0:00:24]}  Kc6 {[%clk 0:00:28]} 52. Ka4 {[%clk 0:00:24]}  Kd7 {[%clk 0:00:28]} 53. Kb3 {[%clk 0:00:22]}  Kc6 {[%clk 0:00:21]} 1/2-1/2


[Site "https://www.chess.com"]

[Event "Titled Tuesday Blitz May 30 Early 2023"]
[White "robertoalejandro10"]
[Black "Manukian, Artak"]
[BlackFideId "13301373"]
[WhiteElo "2513"]
[BlackElo "2130"]
[Result "1/2-1/2"]
[Round "07"]
[TimeControl "180+2"]
[Date "2023.05.30"]
[WhiteClock "0:01:15"]
[BlackClock "0:01:10"]

1. Nf3 {[%clk 0:03:00]}  g6 {[%clk 0:02:59]} 2. c4 {[%clk 0:03:00]}  Bg7 {[%clk 0:02:59]} 3. g3 {[%clk 0:03:00]}  d6 {[%clk 0:02:59]} 4. Bg2 {[%clk 0:03:01]}  c5 {[%clk 0:02:59]} 5. O-O {[%clk 0:03:02]}  Nc6 {[%clk 0:03:00]} 6. Nc3 {[%clk 0:03:02]}  e5 {[%clk 0:02:59]} 7. b3 {[%clk 0:03:02]}  Nge7 {[%clk 0:02:58]} 8. Bb2 {[%clk 0:03:03]}  Bg4 {[%clk 0:02:55]} 9. h3 {[%clk 0:03:02]}  Bd7 {[%clk 0:02:53]} 10. e3 {[%clk 0:03:03]}  Qc8 {[%clk 0:02:52]} 11. Kh2 {[%clk 0:03:02]}  Nf5 {[%clk 0:02:46]} 12. Rb1 {[%clk 0:02:48]}  O-O {[%clk 0:02:45]} 13. Nd5 {[%clk 0:02:48]}  Re8 {[%clk 0:02:43]} 14. d4 {[%clk 0:02:43]}  exd4 {[%clk 0:02:40]} 15. exd4 {[%clk 0:02:43]}  Nfxd4 {[%clk 0:02:38]} 16. Nxd4 {[%clk 0:02:43]}  Nxd4 {[%clk 0:02:38]} 17. Bxd4 {[%clk 0:02:42]}  Bxd4 {[%clk 0:02:28]} 18. b4 {[%clk 0:02:42]}  Bc6 {[%clk 0:02:26]} 19. bxc5 {[%clk 0:02:39]}  dxc5 {[%clk 0:02:24]} 20. Re1 {[%clk 0:02:25]}  Bxd5 {[%clk 0:02:17]} 21. Bxd5 {[%clk 0:02:24]}  Qf5 {[%clk 0:02:18]} 22. f4 {[%clk 0:01:40]}  Rxe1 {[%clk 0:01:54]} 23. Qxe1 {[%clk 0:01:41]}  Rb8 {[%clk 0:01:47]} 24. Rxb7 {[%clk 0:01:30]}  Rxb7 {[%clk 0:01:45]} 25. Bxb7 {[%clk 0:01:31]}  Qc2+ {[%clk 0:01:43]} 26. Kh1 {[%clk 0:01:32]}  Qxa2 {[%clk 0:01:41]} 27. Bd5 {[%clk 0:01:32]}  Qa1 {[%clk 0:01:40]} 28. Qxa1 {[%clk 0:01:29]}  Bxa1 {[%clk 0:01:41]} 29. Kg2 {[%clk 0:01:29]}  a5 {[%clk 0:01:40]} 30. Bc6 {[%clk 0:01:29]}  Kf8 {[%clk 0:01:39]} 31. Kf3 {[%clk 0:01:29]}  Ke7 {[%clk 0:01:40]} 32. Ke4 {[%clk 0:01:29]}  Kd6 {[%clk 0:01:40]} 33. Ba4 {[%clk 0:01:28]}  f5+ {[%clk 0:01:39]} 34. Kf3 {[%clk 0:01:29]}  Bd4 {[%clk 0:01:35]} 35. h4 {[%clk 0:01:27]}  Ke7 {[%clk 0:01:28]} 36. Bb5 {[%clk 0:01:26]}  Kf6 {[%clk 0:01:26]} 37. Ba4 {[%clk 0:01:26]}  Kg7 {[%clk 0:01:24]} 38. Be8 {[%clk 0:01:25]}  Bc3 {[%clk 0:01:24]} 39. Ba4 {[%clk 0:01:25]}  Be1 {[%clk 0:01:24]} 40. Bb5 {[%clk 0:01:25]}  Kf6 {[%clk 0:01:24]} 41. Ba4 {[%clk 0:01:25]}  Ke7 {[%clk 0:01:25]} 42. Bb5 {[%clk 0:01:25]}  Kf6 {[%clk 0:01:25]} 43. Ba4 {[%clk 0:01:25]}  h6 {[%clk 0:01:25]} 44. Bb5 {[%clk 0:01:24]}  g5 {[%clk 0:01:25]} 45. hxg5+ {[%clk 0:01:25]}  hxg5 {[%clk 0:01:26]} 46. Bd7 {[%clk 0:01:22]}  Bd2 {[%clk 0:01:21]} 47. Ba4 {[%clk 0:01:20]}  Ke6 {[%clk 0:01:20]} 48. Bb5 {[%clk 0:01:19]}  Kd6 {[%clk 0:01:19]} 49. Ba4 {[%clk 0:01:19]}  Ke6 {[%clk 0:01:13]} 50. Bb5 {[%clk 0:01:15]}  Kf6 {[%clk 0:01:10]} 1/2-1/2


[Site "https://www.chess.com"]

[Event "Titled Tuesday Blitz May 30 Early 2023"]
[White "Baches Garcia, Guillermo"]
[Black "Dwilewicz, Katarzyna"]
[WhiteFideId "2209764"]
[BlackFideId "1148486"]
[WhiteElo "2510"]
[BlackElo "2065"]
[Result "1-0"]
[Round "07"]
[TimeControl "180+2"]
[Date "2023.05.30"]
[WhiteClock "0:00:14"]
[BlackClock "0:00:03"]

1. e4 {[%clk 0:03:00]}  c5 {[%clk 0:02:59]} 2. Nf3 {[%clk 0:03:01]}  d6 {[%clk 0:02:59]} 3. d4 {[%clk 0:03:01]}  cxd4 {[%clk 0:03:00]} 4. Nxd4 {[%clk 0:03:01]}  Nf6 {[%clk 0:03:00]} 5. Nc3 {[%clk 0:03:02]}  a6 {[%clk 0:03:01]} 6. Be3 {[%clk 0:03:02]}  e6 {[%clk 0:02:58]} 7. g4 {[%clk 0:02:56]}  b5 {[%clk 0:02:53]} 8. g5 {[%clk 0:02:53]}  Nfd7 {[%clk 0:02:53]} 9. a3 {[%clk 0:02:50]}  Be7 {[%clk 0:02:51]} 10. h4 {[%clk 0:02:42]}  Bb7 {[%clk 0:02:51]} 11. Qh5 {[%clk 0:02:32]}  O-O {[%clk 0:02:33]} 12. O-O-O {[%clk 0:02:31]}  Nc5 {[%clk 0:02:28]} 13. Bg2 {[%clk 0:02:16]}  Qa5 {[%clk 0:02:19]} 14. Kb1 {[%clk 0:01:43]}  b4 {[%clk 0:02:14]} 15. axb4 {[%clk 0:01:42]}  Qxb4 {[%clk 0:02:14]} 16. f4 {[%clk 0:01:32]}  Nc6 {[%clk 0:02:13]} 17. Nxc6 {[%clk 0:01:21]}  Bxc6 {[%clk 0:02:13]} 18. Rd4 {[%clk 0:01:21]}  Qb7 {[%clk 0:02:11]} 19. f5 {[%clk 0:01:09]}  e5 {[%clk 0:02:06]} 20. Rd5 {[%clk 0:00:59]}  Rab8 {[%clk 0:01:59]} 21. Bc1 {[%clk 0:00:59]}  Na4 {[%clk 0:01:43]} 22. Nxa4 {[%clk 0:00:53]}  Bxa4 {[%clk 0:01:39]} 23. f6 {[%clk 0:00:51]}  Bd8 {[%clk 0:01:19]} 24. fxg7 {[%clk 0:00:47]}  Re8 {[%clk 0:01:18]} 25. Bh3 {[%clk 0:00:44]}  Bb6 {[%clk 0:00:45]} 26. Bf5 {[%clk 0:00:38]}  Kxg7 {[%clk 0:00:41]} 27. Qxh7+ {[%clk 0:00:36]}  Kf8 {[%clk 0:00:41]} 28. g6 {[%clk 0:00:32]}  Bd4 {[%clk 0:00:27]} 29. c3 {[%clk 0:00:14]}  Bxc3 {[%clk 0:00:16]} 30. Bh6+ {[%clk 0:00:14]}  Ke7 {[%clk 0:00:14]} 31. Qxf7+ {[%clk 0:00:14]}  Kd8 {[%clk 0:00:15]} 32. Bg5+ {[%clk 0:00:14]}  Re7 {[%clk 0:00:14]} 33. Qf8+ {[%clk 0:00:14]}  Be8 {[%clk 0:00:12]} 34. Bxe7+ {[%clk 0:00:13]}  Qxe7 {[%clk 0:00:12]} 35. g7 {[%clk 0:00:13]}  Rxb2+ {[%clk 0:00:11]} 36. Kc1 {[%clk 0:00:13]}  Bd4 {[%clk 0:00:05]} 37. Rxd6+ {[%clk 0:00:13]}  Kc7 {[%clk 0:00:03]} 38. Qxe7+ {[%clk 0:00:13]}  Kb8 {[%clk 0:00:03]} 39. Rd8# {[%clk 0:00:14]} 1-0


[Site "https://www.chess.com"]

[Event "Titled Tuesday Blitz May 30 Early 2023"]
[White "Sargissyan, Sargis"]
[Black "Ladan, Nicholas"]
[WhiteFideId "13303210"]
[BlackFideId "30918855"]
[WhiteElo "2109"]
[BlackElo "2167"]
[Result "0-1"]
[Round "07"]
[TimeControl "180+2"]
[Date "2023.05.30"]
[WhiteClock "0:00:01"]
[BlackClock "0:00:07"]

1. e4 {[%clk 0:03:00]}  e5 {[%clk 0:02:59]} 2. Nf3 {[%clk 0:03:00]}  Nc6 {[%clk 0:02:59]} 3. Bb5 {[%clk 0:03:00]}  a6 {[%clk 0:02:58]} 4. Ba4 {[%clk 0:03:01]}  Nge7 {[%clk 0:02:57]} 5. c3 {[%clk 0:02:58]}  Ng6 {[%clk 0:02:56]} 6. d4 {[%clk 0:02:57]}  Bd6 {[%clk 0:02:48]} 7. h4 {[%clk 0:02:30]}  h5 {[%clk 0:02:30]} 8. Bg5 {[%clk 0:02:17]}  Be7 {[%clk 0:02:27]} 9. Bxc6 {[%clk 0:02:09]}  dxc6 {[%clk 0:02:25]} 10. dxe5 {[%clk 0:02:08]}  Qxd1+ {[%clk 0:02:23]} 11. Kxd1 {[%clk 0:02:08]}  Bg4 {[%clk 0:02:23]} 12. Bxe7 {[%clk 0:01:56]}  Kxe7 {[%clk 0:02:21]} 13. Nd2 {[%clk 0:01:57]}  Nxe5 {[%clk 0:02:19]} 14. Kc2 {[%clk 0:01:57]}  Bxf3 {[%clk 0:02:15]} 15. gxf3 {[%clk 0:01:53]}  Ng6 {[%clk 0:02:07]} 16. Nf1 {[%clk 0:01:50]}  Nf4 {[%clk 0:02:02]} 17. Ne3 {[%clk 0:01:47]}  g6 {[%clk 0:02:01]} 18. Rad1 {[%clk 0:01:14]}  Rad8 {[%clk 0:01:55]} 19. Rhg1 {[%clk 0:01:10]}  Rxd1 {[%clk 0:01:53]} 20. Rxd1 {[%clk 0:01:09]}  a5 {[%clk 0:01:52]} 21. c4 {[%clk 0:01:06]}  Ke6 {[%clk 0:01:41]} 22. c5 {[%clk 0:01:05]}  Ke7 {[%clk 0:01:29]} 23. b3 {[%clk 0:01:03]}  Ne6 {[%clk 0:01:25]} 24. Nc4 {[%clk 0:01:03]}  Ra8 {[%clk 0:01:14]} 25. Ne5 {[%clk 0:01:01]}  Nxc5 {[%clk 0:01:13]} 26. Rd4 {[%clk 0:00:53]}  a4 {[%clk 0:00:53]} 27. b4 {[%clk 0:00:52]}  Ke6 {[%clk 0:00:38]} 28. f4 {[%clk 0:00:42]}  Na6 {[%clk 0:00:22]} 29. Nf3 {[%clk 0:00:26]}  f6 {[%clk 0:00:17]} 30. e5 {[%clk 0:00:22]}  c5 {[%clk 0:00:17]} 31. bxc5 {[%clk 0:00:19]}  Nxc5 {[%clk 0:00:18]} 32. exf6 {[%clk 0:00:18]}  Kxf6 {[%clk 0:00:18]} 33. Ng5 {[%clk 0:00:15]}  Ne6 {[%clk 0:00:15]} 34. Re4 {[%clk 0:00:12]}  Nxg5 {[%clk 0:00:12]} 35. fxg5+ {[%clk 0:00:12]}  Kf5 {[%clk 0:00:12]} 36. Rc4 {[%clk 0:00:12]}  c6 {[%clk 0:00:11]} 37. Kc3 {[%clk 0:00:11]}  Ra5 {[%clk 0:00:08]} 38. Kb4 {[%clk 0:00:10]}  Re5 {[%clk 0:00:06]} 39. Rc3 {[%clk 0:00:06]}  Re4+ {[%clk 0:00:05]} 40. Kc5 {[%clk 0:00:06]}  Rxh4 {[%clk 0:00:05]} 41. Kb6 {[%clk 0:00:06]}  Rb4+ {[%clk 0:00:06]} 42. Kc7 {[%clk 0:00:06]}  Kxg5 {[%clk 0:00:07]} 43. a3 {[%clk 0:00:01]}  Rb3 {[%clk 0:00:07]} 0-1


[Site "https://www.chess.com"]

[Event "Titled Tuesday Blitz May 30 Early 2023"]
[White "Novikova, Galina"]
[Black "Jegorovas, Aleksandras"]
[WhiteFideId "4157095"]
[BlackFideId "12801950"]
[WhiteElo "1953"]
[BlackElo "2247"]
[Result "1-0"]
[Round "07"]
[TimeControl "180+2"]
[Date "2023.05.30"]
[WhiteClock "0:01:11"]
[BlackClock "0:01:21"]

1. e4 {[%clk 0:03:00]}  e6 {[%clk 0:02:59]} 2. Nf3 {[%clk 0:03:01]}  d5 {[%clk 0:02:58]} 3. e5 {[%clk 0:03:01]}  c5 {[%clk 0:02:58]} 4. b4 {[%clk 0:03:02]}  c4 {[%clk 0:02:57]} 5. c3 {[%clk 0:03:01]}  a5 {[%clk 0:02:50]} 6. b5 {[%clk 0:02:58]}  Bc5 {[%clk 0:02:49]} 7. d4 {[%clk 0:02:51]}  cxd3 {[%clk 0:02:48]} 8. Bxd3 {[%clk 0:02:51]}  Nd7 {[%clk 0:02:46]} 9. O-O {[%clk 0:02:51]}  f6 {[%clk 0:02:46]} 10. Qc2 {[%clk 0:02:39]}  fxe5 {[%clk 0:02:36]} 11. Bxh7 {[%clk 0:02:39]}  Ngf6 {[%clk 0:02:36]} 12. Bg6+ {[%clk 0:02:31]}  Kf8 {[%clk 0:02:36]} 13. Ng5 {[%clk 0:02:26]}  Qe7 {[%clk 0:02:32]} 14. Be3 {[%clk 0:02:10]}  Bd6 {[%clk 0:02:22]} 15. f4 {[%clk 0:02:03]}  exf4 {[%clk 0:02:20]} 16. Bxf4 {[%clk 0:02:04]}  Bxf4 {[%clk 0:02:14]} 17. Rxf4 {[%clk 0:02:05]}  Ne5 {[%clk 0:02:14]} 18. Nd2 {[%clk 0:01:59]}  Nxg6 {[%clk 0:02:03]} 19. Qxg6 {[%clk 0:01:59]}  Rh6 {[%clk 0:02:01]} 20. Rxf6+ {[%clk 0:01:43]}  Qxf6 {[%clk 0:01:56]} 21. Nh7+ {[%clk 0:01:43]}  Rxh7 {[%clk 0:01:54]} 22. Qxh7 {[%clk 0:01:43]}  Qxc3 {[%clk 0:01:46]} 23. Rf1+ {[%clk 0:01:40]}  Ke7 {[%clk 0:01:46]} 24. Qg8 {[%clk 0:01:16]}  Qd4+ {[%clk 0:01:29]} 25. Kh1 {[%clk 0:01:14]}  Qxd2 {[%clk 0:01:28]} 26. Qf8+ {[%clk 0:01:12]}  Kd7 {[%clk 0:01:21]} 27. Rf7# {[%clk 0:01:11]} 1-0


[Site "https://www.chess.com"]

[Event "Titled Tuesday Blitz May 30 Early 2023"]
[White "Yurasova, Daria"]
[Black "Silvestre, Christian"]
[WhiteFideId "34146919"]
[BlackFideId "30956269"]
[WhiteElo "2109"]
[BlackElo "2366"]
[Result "1-0"]
[Round "07"]
[TimeControl "180+2"]
[Date "2023.05.30"]
[WhiteClock "0:02:29"]
[BlackClock "0:00:00"]

1. d4 {[%clk 0:03:00]}  Nf6 {[%clk 0:00:46]} 2. Bg5 {[%clk 0:02:59]}  c6 {[%clk 0:00:45]} 3. Bxf6 {[%clk 0:02:58]}  gxf6 {[%clk 0:00:46]} 4. e3 {[%clk 0:02:59]}  e5 {[%clk 0:00:46]} 5. g3 {[%clk 0:03:00]}  d5 {[%clk 0:00:45]} 6. Bg2 {[%clk 0:02:59]}  Bd6 {[%clk 0:00:44]} 7. Ne2 {[%clk 0:02:59]}  e4 {[%clk 0:00:44]} 8. Nd2 {[%clk 0:02:58]}  Nd7 {[%clk 0:00:41]} 9. O-O {[%clk 0:02:57]}  f5 {[%clk 0:00:35]} 10. c4 {[%clk 0:02:57]}  Nf6 {[%clk 0:00:35]} 11. Nc3 {[%clk 0:02:57]}  Be6 {[%clk 0:00:34]} 12. cxd5 {[%clk 0:02:57]}  cxd5 {[%clk 0:00:29]} 13. a3 {[%clk 0:02:53]}  h5 {[%clk 0:00:25]} 14. b4 {[%clk 0:02:50]}  h4 {[%clk 0:00:24]} 15. Nb3 {[%clk 0:02:50]}  Ng4 {[%clk 0:00:22]} 16. h3 {[%clk 0:02:41]}  Nf6 {[%clk 0:00:16]} 17. Nc5 {[%clk 0:02:33]}  Ke7 {[%clk 0:00:12]} 18. Nxb7 {[%clk 0:02:33]}  Qg8 {[%clk 0:00:09]} 19. Nxd6 {[%clk 0:02:32]}  Kxd6 {[%clk 0:00:09]} 20. Nb5+ {[%clk 0:02:32]}  Ke7 {[%clk 0:00:09]} 21. Qc2 {[%clk 0:02:32]}  hxg3 {[%clk 0:00:09]} 22. Qc7+ {[%clk 0:02:31]}  Kf8 {[%clk 0:00:00]} 23. Qd6+ {[%clk 0:02:29]} 1-0


[Site "https://www.chess.com"]

[Event "Titled Tuesday Blitz May 30 Early 2023"]
[White "cristianserban1"]
[Black "Martin Alvarez, Inigo"]
[BlackFideId "2259354"]
[WhiteElo "2487"]
[BlackElo "2358"]
[Result "0-1"]
[Round "07"]
[TimeControl "180+2"]
[Date "2023.05.30"]
[WhiteClock "0:00:16"]
[BlackClock "0:01:17"]

1. Nf3 {[%clk 0:03:00]}  g6 {[%clk 0:02:58]} 2. g3 {[%clk 0:03:01]}  Bg7 {[%clk 0:02:58]} 3. Bg2 {[%clk 0:03:02]}  Nf6 {[%clk 0:02:58]} 4. d3 {[%clk 0:03:03]}  O-O {[%clk 0:02:58]} 5. O-O {[%clk 0:03:03]}  d6 {[%clk 0:02:59]} 6. e4 {[%clk 0:03:03]}  e5 {[%clk 0:02:59]} 7. Ne1 {[%clk 0:03:01]}  Bd7 {[%clk 0:02:56]} 8. a4 {[%clk 0:02:58]}  Qc8 {[%clk 0:02:55]} 9. b3 {[%clk 0:02:45]}  Bh3 {[%clk 0:02:54]} 10. Bb2 {[%clk 0:02:45]}  Bxg2 {[%clk 0:02:53]} 11. Nxg2 {[%clk 0:02:46]}  Qh3 {[%clk 0:02:50]} 12. f3 {[%clk 0:02:39]}  Nc6 {[%clk 0:02:49]} 13. Nd2 {[%clk 0:02:37]}  Nh5 {[%clk 0:02:48]} 14. g4 {[%clk 0:02:34]}  Nf6 {[%clk 0:02:33]} 15. Qe1 {[%clk 0:01:49]}  h5 {[%clk 0:02:32]} 16. g5 {[%clk 0:01:50]}  Nh7 {[%clk 0:02:31]} 17. f4 {[%clk 0:01:50]}  exf4 {[%clk 0:02:25]} 18. Bxg7 {[%clk 0:01:51]}  Kxg7 {[%clk 0:02:24]} 19. Nf3 {[%clk 0:01:39]}  Ne5 {[%clk 0:02:18]} 20. Qc3 {[%clk 0:01:23]}  Rae8 {[%clk 0:02:09]} 21. Nxf4 {[%clk 0:01:14]}  Qg4+ {[%clk 0:02:06]} 22. Ng2 {[%clk 0:01:14]}  Kg8 {[%clk 0:02:00]} 23. Nxe5 {[%clk 0:01:10]}  Rxe5 {[%clk 0:02:00]} 24. Rf4 {[%clk 0:01:05]}  Qh3 {[%clk 0:01:49]} 25. Raf1 {[%clk 0:00:54]}  Rxg5 {[%clk 0:01:44]} 26. R1f2 {[%clk 0:00:54]}  Rc5 {[%clk 0:01:44]} 27. Qd2 {[%clk 0:00:49]}  Ng5 {[%clk 0:01:38]} 28. d4 {[%clk 0:00:45]}  Rc6 {[%clk 0:01:26]} 29. c4 {[%clk 0:00:16]}  Qxb3 {[%clk 0:01:17]} 0-1


[Site "https://www.chess.com"]

[Event "Titled Tuesday Blitz May 30 Early 2023"]
[White "Rodrigues Mota, Romulo Cardoso S"]
[Black "LangesNasenhaar"]
[WhiteFideId "2187442"]
[WhiteElo "1936"]
[BlackElo "2486"]
[Result "1-0"]
[Round "07"]
[TimeControl "180+2"]
[Date "2023.05.30"]
[WhiteClock "0:00:06"]
[BlackClock "0:00:00"]

1. e4 {[%clk 0:03:00]}  d6 {[%clk 0:03:00]} 2. d4 {[%clk 0:02:52]}  Nf6 {[%clk 0:03:00]} 3. Bd3 {[%clk 0:02:50]}  Nbd7 {[%clk 0:03:00]} 4. Qe2 {[%clk 0:02:50]}  e5 {[%clk 0:03:00]} 5. c3 {[%clk 0:02:46]}  c6 {[%clk 0:02:59]} 6. f4 {[%clk 0:02:45]}  Be7 {[%clk 0:02:55]} 7. Nf3 {[%clk 0:02:44]}  Qc7 {[%clk 0:02:56]} 8. O-O {[%clk 0:02:41]}  O-O {[%clk 0:02:55]} 9. Na3 {[%clk 0:02:38]}  b5 {[%clk 0:02:50]} 10. Nc2 {[%clk 0:02:37]}  Re8 {[%clk 0:02:48]} 11. a4 {[%clk 0:02:37]}  bxa4 {[%clk 0:02:45]} 12. Rxa4 {[%clk 0:02:35]}  a5 {[%clk 0:02:46]} 13. b4 {[%clk 0:02:34]}  Bb7 {[%clk 0:02:35]} 14. Rxa5 {[%clk 0:02:26]}  Rxa5 {[%clk 0:02:35]} 15. bxa5 {[%clk 0:02:27]}  Qxa5 {[%clk 0:02:35]} 16. fxe5 {[%clk 0:02:26]}  dxe5 {[%clk 0:02:36]} 17. Bd2 {[%clk 0:02:25]}  Bf8 {[%clk 0:02:24]} 18. Nh4 {[%clk 0:02:13]}  Qb6 {[%clk 0:02:05]} 19. Bc4 {[%clk 0:02:04]}  exd4 {[%clk 0:01:52]} 20. cxd4 {[%clk 0:02:05]}  Ne5 {[%clk 0:01:44]} 21. Ba2 {[%clk 0:01:39]}  Ba6 {[%clk 0:01:45]} 22. Qe3 {[%clk 0:01:25]}  Bxf1 {[%clk 0:01:36]} 23. dxe5 {[%clk 0:01:26]}  Qxe3+ {[%clk 0:01:27]} 24. Bxe3 {[%clk 0:01:26]}  Bd3 {[%clk 0:01:10]} 25. Ne1 {[%clk 0:01:26]}  Ng4 {[%clk 0:00:57]} 26. Nxd3 {[%clk 0:01:20]}  Nxe3 {[%clk 0:00:57]} 27. h3 {[%clk 0:01:11]}  c5 {[%clk 0:00:49]} 28. Kf2 {[%clk 0:01:10]}  c4 {[%clk 0:00:43]} 29. Kxe3 {[%clk 0:01:09]}  cxd3 {[%clk 0:00:43]} 30. Nf3 {[%clk 0:01:05]}  Rd8 {[%clk 0:00:38]} 31. Bd5 {[%clk 0:00:54]}  Bc5+ {[%clk 0:00:26]} 32. Kxd3 {[%clk 0:00:54]}  h6 {[%clk 0:00:27]} 33. Kc4 {[%clk 0:00:54]}  Ba7 {[%clk 0:00:25]} 34. e6 {[%clk 0:00:52]}  fxe6 {[%clk 0:00:22]} 35. Bxe6+ {[%clk 0:00:52]}  Kf8 {[%clk 0:00:23]} 36. Ne5 {[%clk 0:00:52]}  Rd2 {[%clk 0:00:20]} 37. Nc6 {[%clk 0:00:27]}  Bf2 {[%clk 0:00:14]} 38. g4 {[%clk 0:00:28]}  Bg3 {[%clk 0:00:12]} 39. Nd4 {[%clk 0:00:25]}  Bf2 {[%clk 0:00:09]} 40. Nf3 {[%clk 0:00:20]}  Rd8 {[%clk 0:00:09]} 41. Bd5 {[%clk 0:00:20]}  Ke7 {[%clk 0:00:09]} 42. e5 {[%clk 0:00:19]}  Bg3 {[%clk 0:00:09]} 43. Kd4 {[%clk 0:00:19]}  Rb8 {[%clk 0:00:09]} 44. Ke4 {[%clk 0:00:19]}  g6 {[%clk 0:00:08]} 45. h4 {[%clk 0:00:18]}  Rb4+ {[%clk 0:00:08]} 46. Ke3 {[%clk 0:00:18]}  Rxg4 {[%clk 0:00:08]} 47. Be4 {[%clk 0:00:13]}  Bxh4 {[%clk 0:00:04]} 48. Nxh4 {[%clk 0:00:13]}  Rxh4 {[%clk 0:00:04]} 49. Bxg6 {[%clk 0:00:14]}  Rh1 {[%clk 0:00:05]} 50. Kf2 {[%clk 0:00:14]}  Ra1 {[%clk 0:00:04]} 51. Bf5 {[%clk 0:00:13]}  Ra3 {[%clk 0:00:04]} 52. e6 {[%clk 0:00:13]}  Ra5 {[%clk 0:00:04]} 53. Bh3 {[%clk 0:00:13]}  Ra3 {[%clk 0:00:04]} 54. Kg2 {[%clk 0:00:13]}  Kf6 {[%clk 0:00:05]} 55. Kh2 {[%clk 0:00:13]}  Rc3 {[%clk 0:00:05]} 56. Kg2 {[%clk 0:00:13]}  h5 {[%clk 0:00:05]} 57. Kh2 {[%clk 0:00:14]}  Re3 {[%clk 0:00:06]} 58. Kg2 {[%clk 0:00:14]}  Kg5 {[%clk 0:00:06]} 59. Kh2 {[%clk 0:00:11]}  Kf4 {[%clk 0:00:05]} 60. Bg2 {[%clk 0:00:06]}  Re2 {[%clk 0:00:05]} 61. Kh3 {[%clk 0:00:06]}  Re5 {[%clk 0:00:00]} 62. Kh4 {[%clk 0:00:06]} 1-0


[Site "https://www.chess.com"]